[Event "Early-Titled-Tuesday-Blitz-May-28-2024"]
[Site "Chess.com"]
[Date "2024.05.28"]
[Round "5"]
[White "Root_21"]
[Black "Azeryahu"]
[Result "0-1"]
[WhiteElo "2679"]
[BlackElo "2931"]
[TimeControl "180+1"]
[EndTime "8:54:27 PDT"]
[Termination "Azeryahu won by resignation"]

1. e4 {[%clk 0:03:00.9]} 1... e5 {[%clk 0:02:59.6]} 2. Nf3 {[%clk 0:03:01.1]}
2... Nc6 {[%clk 0:02:59.9]} 3. Bb5 {[%clk 0:03:01.3]} 3... a6 {[%clk 0:02:59.8]}
4. Ba4 {[%clk 0:03:01.4]} 4... Nge7 {[%clk 0:03:00.3]} 5. O-O {[%clk 0:02:59.4]}
5... Ng6 {[%clk 0:02:59.2]} 6. c3 {[%clk 0:02:54.7]} 6... d5 {[%clk 0:02:58.9]}
7. exd5 {[%clk 0:02:53.2]} 7... Qxd5 {[%clk 0:02:59.8]} 8. d4 {[%clk 0:02:53]}
8... Bg4 {[%clk 0:02:59.5]} 9. Bb3 {[%clk 0:02:39.9]} 9... Bxf3 {[%clk
0:02:56.7]} 10. Bxd5 {[%clk 0:02:35.1]} 10... Bxd1 {[%clk 0:02:56.8]} 11. Bxc6+
{[%clk 0:02:35.8]} 11... bxc6 {[%clk 0:02:56.5]} 12. Rxd1 {[%clk 0:02:36.4]}
12... O-O-O {[%clk 0:02:57.4]} 13. Be3 {[%clk 0:02:23.3]} 13... f5 {[%clk
0:02:33]} 14. f3 {[%clk 0:02:16.4]} 14... c5 {[%clk 0:02:05.6]} 15. d5 {[%clk
0:02:06.6]} 15... Ne7 {[%clk 0:02:05.8]} 16. c4 {[%clk 0:02:05.1]} 16... Nc6
{[%clk 0:02:06.4]} 17. Nc3 {[%clk 0:02:01.9]} 17... Nd4 {[%clk 0:02:06.1]} 18.
Rac1 {[%clk 0:01:54.8]} 18... Bd6 {[%clk 0:02:04.2]} 19. Kf2 {[%clk 0:01:53.1]}
19... Rhf8 {[%clk 0:02:02]} 20. a3 {[%clk 0:01:17.2]} 20... Kd7 {[%clk
0:02:00.1]} 21. b4 {[%clk 0:01:07.7]} 21... cxb4 {[%clk 0:01:58.3]} 22. axb4
{[%clk 0:01:07.4]} 22... Bxb4 {[%clk 0:01:59.2]} 23. Bxd4 {[%clk 0:01:07.6]}
23... exd4 {[%clk 0:01:58.9]} 24. Ne2 {[%clk 0:01:08.5]} 24... c5 {[%clk
0:01:50.6]} 25. dxc6+ {[%clk 0:01:07.7]} 25... Kxc6 {[%clk 0:01:51.3]} 26. Nxd4+
{[%clk 0:01:03.5]} 26... Rxd4 {[%clk 0:01:51.3]} 27. Rxd4 {[%clk 0:01:04.4]}
27... Bc5 {[%clk 0:01:52]} 28. Rd1 {[%clk 0:00:59.3]} 28... Rd8 {[%clk
0:01:51.7]} 29. Ke3 {[%clk 0:00:58.7]} 29... a5 {[%clk 0:01:44.6]} 30. g4 {[%clk
0:00:55.3]} 30... g6 {[%clk 0:01:44.8]} 31. h4 {[%clk 0:00:34.5]} 31... a4
{[%clk 0:01:43.8]} 32. h5 {[%clk 0:00:34.8]} 32... a3 {[%clk 0:01:43.5]} 33.
hxg6 {[%clk 0:00:34.6]} 33... hxg6 {[%clk 0:01:43.2]} 34. gxf5 {[%clk
0:00:34.9]} 34... gxf5 {[%clk 0:01:43.6]} 0-1

[Event "Early-Titled-Tuesday-Blitz-May-28-2024"]
[Site "Chess.com"]
[Date "2024.05.28"]
[Round "5"]
[White "luggevoila"]
[Black "amanjazu"]
[Result "0-1"]
[WhiteElo "2334"]
[BlackElo "2560"]
[TimeControl "180+1"]
[EndTime "8:54:27 PDT"]
[Termination "amanjazu won by resignation"]

1. e4 {[%clk 0:03:00.9]} 1... c5 {[%clk 0:02:59.2]} 2. Nf3 {[%clk 0:02:59.6]}
2... e6 {[%clk 0:02:59]} 3. c3 {[%clk 0:02:59.1]} 3... Nf6 {[%clk 0:02:56.1]} 4.
e5 {[%clk 0:02:58.8]} 4... Nd5 {[%clk 0:02:56.2]} 5. d4 {[%clk 0:02:58.2]} 5...
cxd4 {[%clk 0:02:57.1]} 6. cxd4 {[%clk 0:02:58.2]} 6... d6 {[%clk 0:02:57.5]} 7.
Bc4 {[%clk 0:02:57.9]} 7... Nb6 {[%clk 0:02:57.4]} 8. Bd3 {[%clk 0:02:42.7]}
8... Nc6 {[%clk 0:02:56.4]} 9. O-O {[%clk 0:02:41.5]} 9... dxe5 {[%clk
0:02:55.6]} 10. dxe5 {[%clk 0:02:41.4]} 10... Be7 {[%clk 0:02:47.1]} 11. Qe2
{[%clk 0:02:41.1]} 11... Qc7 {[%clk 0:02:38.9]} 12. Qe4 {[%clk 0:02:35.3]} 12...
Nb4 {[%clk 0:02:34.3]} 13. Bb5+ {[%clk 0:02:17.9]} 13... Bd7 {[%clk 0:02:33.1]}
14. Bxd7+ {[%clk 0:02:18.1]} 14... Qxd7 {[%clk 0:02:28]} 15. Nc3 {[%clk
0:02:16.9]} 15... N4d5 {[%clk 0:02:26.6]} 16. Ne2 {[%clk 0:02:04.2]} 16... h6
{[%clk 0:02:21.4]} 17. Bd2 {[%clk 0:01:56.4]} 17... O-O {[%clk 0:02:18.1]} 18.
Rfd1 {[%clk 0:01:56.6]} 18... Qa4 {[%clk 0:02:14.7]} 19. Qd3 {[%clk 0:01:41.5]}
19... Qc4 {[%clk 0:02:08.2]} 20. Qxc4 {[%clk 0:01:10.9]} 20... Nxc4 {[%clk
0:02:09.1]} 21. b3 {[%clk 0:01:07]} 21... Nb2 {[%clk 0:02:04.9]} 22. Rdb1 {[%clk
0:00:52.7]} 22... Nd3 {[%clk 0:02:03.1]} 23. Ned4 {[%clk 0:00:43.8]} 23... Rfd8
{[%clk 0:02:00.1]} 24. Kf1 {[%clk 0:00:41.7]} 24... Bc5 {[%clk 0:01:58.9]} 25.
Be3 {[%clk 0:00:30.7]} 25... Nc3 {[%clk 0:01:37.3]} 0-1

[Event "Early-Titled-Tuesday-Blitz-May-28-2024"]
[Site "Chess.com"]
[Date "2024.05.28"]
[Round "5"]
[White "Stanbad1"]
[Black "alexrustemov"]
[Result "0-1"]
[WhiteElo "2634"]
[BlackElo "2829"]
[TimeControl "180+1"]
[EndTime "8:54:31 PDT"]
[Termination "alexrustemov won by resignation"]

1. d4 {[%clk 0:03:00.9]} 1... d5 {[%clk 0:02:59.8]} 2. Nc3 {[%clk 0:02:59.4]}
2... Nf6 {[%clk 0:02:59.2]} 3. Bf4 {[%clk 0:02:59.7]} 3... c5 {[%clk 0:02:58.8]}
4. e4 {[%clk 0:02:58.8]} 4... Nxe4 {[%clk 0:02:54.9]} 5. Nxe4 {[%clk 0:02:57.5]}
5... dxe4 {[%clk 0:02:54.9]} 6. dxc5 {[%clk 0:02:58]} 6... Qxd1+ {[%clk
0:02:53.6]} 7. Rxd1 {[%clk 0:02:57.4]} 7... Nc6 {[%clk 0:02:54]} 8. Bc4 {[%clk
0:02:55.9]} 8... e5 {[%clk 0:02:52.8]} 9. Be3 {[%clk 0:02:54.3]} 9... f5 {[%clk
0:02:52]} 10. f4 {[%clk 0:02:48.1]} 10... exf4 {[%clk 0:02:50.6]} 11. Bxf4
{[%clk 0:02:48.2]} 11... Bxc5 {[%clk 0:02:50.8]} 12. Ne2 {[%clk 0:02:48]} 12...
Bd7 {[%clk 0:02:33.9]} 13. Nc3 {[%clk 0:02:46.7]} 13... O-O-O {[%clk 0:02:18.2]}
14. a3 {[%clk 0:02:34.7]} 14... Rhe8 {[%clk 0:02:12]} 15. b4 {[%clk 0:02:22.2]}
15... Bb6 {[%clk 0:02:08.7]} 16. Nb5 {[%clk 0:02:20.5]} 16... Be6 {[%clk
0:02:05.6]} 17. Bxe6+ {[%clk 0:02:14.7]} 17... Rxe6 {[%clk 0:02:05.5]} 18. Nd6+
{[%clk 0:02:15.3]} 18... Rdxd6 {[%clk 0:01:41]} 19. Rxd6 {[%clk 0:02:14.5]}
19... Rxd6 {[%clk 0:01:36.1]} 20. Bxd6 {[%clk 0:02:13.8]} 20... Kd7 {[%clk
0:01:36.7]} 21. Bf4 {[%clk 0:02:12.9]} 21... Ke6 {[%clk 0:01:29.7]} 22. Kd2
{[%clk 0:02:06.6]} 22... h6 {[%clk 0:01:25.8]} 23. c4 {[%clk 0:02:04.3]} 23...
g5 {[%clk 0:01:25.3]} 24. Be3 {[%clk 0:02:03.7]} 24... Bxe3+ {[%clk 0:01:25.2]}
25. Kxe3 {[%clk 0:02:04.6]} 25... Ke5 {[%clk 0:01:25.9]} 26. Rd1 {[%clk
0:01:52.2]} 26... f4+ {[%clk 0:01:26]} 27. Ke2 {[%clk 0:01:49]} 27... Nd4+
{[%clk 0:01:25.8]} 28. Kd2 {[%clk 0:01:48.7]} 28... g4 {[%clk 0:01:16.2]} 29.
Kc3 {[%clk 0:01:47.9]} 29... Ne2+ {[%clk 0:01:10.5]} 30. Kd2 {[%clk 0:01:47.4]}
30... Nd4 {[%clk 0:00:58.7]} 31. Kc3 {[%clk 0:01:46.8]} 31... Nf5 {[%clk
0:00:55.3]} 32. Rd5+ {[%clk 0:01:46.3]} 32... Ke6 {[%clk 0:00:55.9]} 33. g3
{[%clk 0:01:42.5]} 33... f3 {[%clk 0:00:55.1]} 34. Kd2 {[%clk 0:01:41]} 34...
e3+ {[%clk 0:00:55.1]} 35. Ke1 {[%clk 0:01:40.7]} 35... h5 {[%clk 0:00:48.6]}
36. Rd8 {[%clk 0:01:38.8]} 36... h4 {[%clk 0:00:47.6]} 37. c5 {[%clk 0:01:34.3]}
37... hxg3 {[%clk 0:00:45.8]} 38. hxg3 {[%clk 0:01:35.2]} 38... f2+ {[%clk
0:00:46.3]} 39. Ke2 {[%clk 0:01:35.3]} 39... Nxg3+ {[%clk 0:00:46.4]} 40. Kxe3
{[%clk 0:01:34.8]} 40... f1=Q {[%clk 0:00:46.1]} 0-1

[Event "Early-Titled-Tuesday-Blitz-May-28-2024"]
[Site "Chess.com"]
[Date "2024.05.28"]
[Round "5"]
[White "Manukyan_Artak"]
[Black "Kildepiotr"]
[Result "1/2-1/2"]
[WhiteElo "2576"]
[BlackElo "2744"]
[TimeControl "180+1"]
[EndTime "8:54:37 PDT"]
[Termination "Game drawn by repetition"]

1. e4 {[%clk 0:03:00.9]} 1... g6 {[%clk 0:02:59.9]} 2. d4 {[%clk 0:03:00.5]}
2... Bg7 {[%clk 0:03:00.1]} 3. Nc3 {[%clk 0:02:59.7]} 3... c6 {[%clk 0:03:00.4]}
4. Bg5 {[%clk 0:02:59.4]} 4... d5 {[%clk 0:03:00.1]} 5. exd5 {[%clk 0:02:59.1]}
5... cxd5 {[%clk 0:03:00.1]} 6. Qd2 {[%clk 0:02:59.2]} 6... Nc6 {[%clk
0:03:00.1]} 7. Nge2 {[%clk 0:02:58.2]} 7... Nf6 {[%clk 0:02:58.1]} 8. f3 {[%clk
0:02:57.4]} 8... h6 {[%clk 0:02:57.7]} 9. Be3 {[%clk 0:02:56.7]} 9... h5 {[%clk
0:02:52.3]} 10. O-O-O {[%clk 0:02:56.1]} 10... h4 {[%clk 0:02:50.6]} 11. Kb1
{[%clk 0:02:52.3]} 11... Bf5 {[%clk 0:02:50.5]} 12. Nf4 {[%clk 0:02:48]} 12...
a6 {[%clk 0:02:43.9]} 13. Bd3 {[%clk 0:02:45.6]} 13... Qd7 {[%clk 0:02:40.5]}
14. g4 {[%clk 0:02:39.3]} 14... hxg3 {[%clk 0:02:26.1]} 15. hxg3 {[%clk
0:02:40.2]} 15... O-O-O {[%clk 0:02:26]} 16. g4 {[%clk 0:02:34.1]} 16... Bxd3
{[%clk 0:02:24]} 17. Nxd3 {[%clk 0:02:35]} 17... Rxh1 {[%clk 0:02:19.2]} 18.
Rxh1 {[%clk 0:02:34.4]} 18... Rh8 {[%clk 0:02:19.3]} 19. Rxh8+ {[%clk
0:02:34.3]} 19... Bxh8 {[%clk 0:02:19.1]} 20. Bf4 {[%clk 0:02:22.2]} 20... Qd8
{[%clk 0:02:10.6]} 21. Ne5 {[%clk 0:02:15.5]} 21... Nxe5 {[%clk 0:01:52.1]} 22.
Bxe5 {[%clk 0:02:16.4]} 22... e6 {[%clk 0:01:47]} 23. Qf4 {[%clk 0:02:02.7]}
23... Nd7 {[%clk 0:01:30.9]} 24. Qxf7 {[%clk 0:02:01.8]} 24... Bxe5 {[%clk
0:01:28]} 25. dxe5 {[%clk 0:02:01.7]} 25... Qh4 {[%clk 0:01:22.8]} 26. a4 {[%clk
0:01:56.3]} 26... Qe1+ {[%clk 0:01:20.4]} 27. Ka2 {[%clk 0:01:55.8]} 27... Qxe5
{[%clk 0:01:20.1]} 28. Qxg6 {[%clk 0:01:54.5]} 28... Nc5 {[%clk 0:00:54]} 29. g5
{[%clk 0:01:27.8]} 29... Qf4 {[%clk 0:00:47.7]} 30. Qe8+ {[%clk 0:01:15.3]}
30... Kc7 {[%clk 0:00:47.7]} 31. g6 {[%clk 0:01:15.7]} 31... Qc4+ {[%clk
0:00:47.2]} 32. Kb1 {[%clk 0:01:14.3]} 32... Qf1+ {[%clk 0:00:46.8]} 33. Ka2
{[%clk 0:01:14.1]} 33... Qc4+ {[%clk 0:00:47.7]} 34. Kb1 {[%clk 0:01:06.5]}
34... Qf1+ {[%clk 0:00:47.6]} 35. Ka2 {[%clk 0:01:06.7]} 35... Qc4+ {[%clk
0:00:48.5]} 1/2-1/2

[Event "Early-Titled-Tuesday-Blitz-May-28-2024"]
[Site "Chess.com"]
[Date "2024.05.28"]
[Round "5"]
[White "TatjanaVasilevich"]
[Black "kekic76"]
[Result "1-0"]
[WhiteElo "2589"]
[BlackElo "2341"]
[TimeControl "180+1"]
[EndTime "8:54:38 PDT"]
[Termination "TatjanaVasilevich won by resignation"]

1. d4 {[%clk 0:03:00.9]} 1... d5 {[%clk 0:02:54.9]} 2. c4 {[%clk 0:03:00.4]}
2... e6 {[%clk 0:02:54.8]} 3. Nc3 {[%clk 0:02:59]} 3... Nf6 {[%clk 0:02:55.2]}
4. cxd5 {[%clk 0:02:58.4]} 4... exd5 {[%clk 0:02:54.7]} 5. Bg5 {[%clk
0:02:58.4]} 5... Be7 {[%clk 0:02:54.1]} 6. e3 {[%clk 0:02:58.5]} 6... O-O {[%clk
0:02:52.8]} 7. Bd3 {[%clk 0:02:58.7]} 7... h6 {[%clk 0:02:52.5]} 8. Bh4 {[%clk
0:02:57.3]} 8... Be6 {[%clk 0:02:52.1]} 9. Nge2 {[%clk 0:02:56]} 9... c6 {[%clk
0:02:52.1]} 10. f3 {[%clk 0:02:55.9]} 10... Nbd7 {[%clk 0:02:52.6]} 11. Bf2
{[%clk 0:02:55.1]} 11... c5 {[%clk 0:02:46.3]} 12. O-O {[%clk 0:02:53.6]} 12...
b6 {[%clk 0:02:41.8]} 13. Rc1 {[%clk 0:02:49.9]} 13... Rc8 {[%clk 0:02:40.2]}
14. Bb1 {[%clk 0:02:47]} 14... cxd4 {[%clk 0:02:37.9]} 15. Nxd4 {[%clk
0:02:46.1]} 15... Nc5 {[%clk 0:02:35.1]} 16. Re1 {[%clk 0:02:39.9]} 16... Bd6
{[%clk 0:02:28.7]} 17. Ncb5 {[%clk 0:02:26.1]} 17... Bb8 {[%clk 0:02:15.9]} 18.
b4 {[%clk 0:02:17.2]} 18... Na6 {[%clk 0:01:52.6]} 19. Nc6 {[%clk 0:02:12.5]}
19... Qd7 {[%clk 0:01:33.5]} 20. Nbd4 {[%clk 0:02:00.7]} 20... Qd6 {[%clk
0:01:20.6]} 21. Bg3 {[%clk 0:01:58.5]} 21... Qd7 {[%clk 0:01:11.1]} 22. Nxb8
{[%clk 0:01:56.3]} 22... Nxb8 {[%clk 0:01:08.3]} 23. Qd3 {[%clk 0:01:41.2]}
23... Nc6 {[%clk 0:00:20.8]} 24. Nxc6 {[%clk 0:01:37.6]} 24... Rxc6 {[%clk
0:00:20.5]} 25. Be5 {[%clk 0:01:38.1]} 25... Bf5 {[%clk 0:00:17.3]} 26. Qxf5
{[%clk 0:01:36.6]} 26... Qxf5 {[%clk 0:00:14.5]} 27. Bxf5 {[%clk 0:01:37.5]} 1-0

[Event "Early-Titled-Tuesday-Blitz-May-28-2024"]
[Site "Chess.com"]
[Date "2024.05.28"]
[Round "5"]
[White "SaraBlackPanther"]
[Black "WindWhistler11"]
[Result "1-0"]
[WhiteElo "2753"]
[BlackElo "2547"]
[TimeControl "180+1"]
[EndTime "8:54:44 PDT"]
[Termination "SaraBlackPanther won on time"]

1. d4 {[%clk 0:03:00.9]} 1... Nf6 {[%clk 0:02:59.7]} 2. c4 {[%clk 0:03:00.2]}
2... e6 {[%clk 0:02:59.7]} 3. Nc3 {[%clk 0:02:58.1]} 3... c5 {[%clk 0:02:59.5]}
4. d5 {[%clk 0:02:53.5]} 4... exd5 {[%clk 0:03:00.4]} 5. cxd5 {[%clk 0:02:53.8]}
5... Bd6 {[%clk 0:03:00.8]} 6. Nf3 {[%clk 0:02:49.5]} 6... O-O {[%clk 0:03:00]}
7. g3 {[%clk 0:02:45.4]} 7... Re8 {[%clk 0:02:59.3]} 8. Bg2 {[%clk 0:02:45.4]}
8... Bf8 {[%clk 0:02:58.8]} 9. O-O {[%clk 0:02:45.4]} 9... d6 {[%clk 0:02:58.9]}
10. Nd2 {[%clk 0:02:41.3]} 10... b6 {[%clk 0:02:51.1]} 11. b3 {[%clk 0:02:29.4]}
11... Ba6 {[%clk 0:02:30]} 12. a4 {[%clk 0:02:21.6]} 12... g6 {[%clk 0:02:02.1]}
13. Bb2 {[%clk 0:02:20.7]} 13... Nbd7 {[%clk 0:01:48.3]} 14. Re1 {[%clk
0:02:19.6]} 14... Rc8 {[%clk 0:01:41.1]} 15. Nb5 {[%clk 0:02:10.7]} 15... Bxb5
{[%clk 0:01:23]} 16. axb5 {[%clk 0:02:11.6]} 16... Rc7 {[%clk 0:01:22.4]} 17.
Nc4 {[%clk 0:02:09.8]} 17... Ng4 {[%clk 0:01:00.7]} 18. e4 {[%clk 0:02:05.8]}
18... Nge5 {[%clk 0:00:53.9]} 19. f4 {[%clk 0:02:04.7]} 19... Nxc4 {[%clk
0:00:50.1]} 20. bxc4 {[%clk 0:02:05.6]} 20... Bg7 {[%clk 0:00:48.5]} 21. Bxg7
{[%clk 0:01:59.7]} 21... Kxg7 {[%clk 0:00:49.4]} 22. Ra3 {[%clk 0:02:00.2]}
22... f6 {[%clk 0:00:28]} 23. Qa1 {[%clk 0:01:57.9]} 23... Qb8 {[%clk
0:00:24.9]} 24. Bh3 {[%clk 0:01:55.6]} 24... Nf8 {[%clk 0:00:23.9]} 25. e5
{[%clk 0:01:52.1]} 25... dxe5 {[%clk 0:00:03.3]} 26. fxe5 {[%clk 0:01:52.7]}
26... Rf7 {[%clk 0:00:02.9]} 27. e6 {[%clk 0:01:43.7]} 1-0

[Event "Early-Titled-Tuesday-Blitz-May-28-2024"]
[Site "Chess.com"]
[Date "2024.05.28"]
[Round "5"]
[White "Sl4werThanYou"]
[Black "Al_Shima"]
[Result "1-0"]
[WhiteElo "2733"]
[BlackElo "2485"]
[TimeControl "180+1"]
[EndTime "8:54:45 PDT"]
[Termination "Sl4werThanYou won by resignation"]

1. e4 {[%clk 0:03:00.9]} 1... d5 {[%clk 0:02:59.8]} 2. exd5 {[%clk 0:02:59.3]}
2... Nf6 {[%clk 0:03:00.3]} 3. c4 {[%clk 0:02:47.1]} 3... e6 {[%clk 0:03:00]} 4.
dxe6 {[%clk 0:02:43.1]} 4... Bxe6 {[%clk 0:03:00.9]} 5. d4 {[%clk 0:02:43.5]}
5... Bb4+ {[%clk 0:03:01.3]} 6. Bd2 {[%clk 0:02:41.3]} 6... Qe7 {[%clk
0:02:58.3]} 7. Be2 {[%clk 0:02:39.9]} 7... Bxc4 {[%clk 0:02:28.1]} 8. Qa4+
{[%clk 0:02:31.8]} 8... b5 {[%clk 0:02:28.3]} 9. Qxb4 {[%clk 0:02:29.4]} 9...
Qe6 {[%clk 0:02:13.6]} 10. Nc3 {[%clk 0:02:16.7]} 10... Nc6 {[%clk 0:02:13.3]}
11. Qc5 {[%clk 0:02:14.6]} 11... Rd8 {[%clk 0:02:01]} 12. Nf3 {[%clk 0:01:57]}
12... Ne4 {[%clk 0:01:39.8]} 13. Nxe4 {[%clk 0:01:53.2]} 13... Qxe4 {[%clk
0:01:36.7]} 14. Be3 {[%clk 0:01:40.1]} 14... Bxe2 {[%clk 0:00:55.6]} 15. Kxe2
{[%clk 0:01:41]} 15... Rd6 {[%clk 0:00:49]} 16. Rhe1 {[%clk 0:01:26.6]} 16...
O-O {[%clk 0:00:46]} 17. Kf1 {[%clk 0:01:26.6]} 17... Qd3+ {[%clk 0:00:45.6]}
18. Kg1 {[%clk 0:01:27]} 18... Rfd8 {[%clk 0:00:42.6]} 19. Rad1 {[%clk
0:01:26.8]} 19... Qg6 {[%clk 0:00:38.5]} 20. h3 {[%clk 0:01:26]} 20... Rd5
{[%clk 0:00:37.5]} 21. Qc3 {[%clk 0:01:23.2]} 21... b4 {[%clk 0:00:34.6]} 22.
Qd3 {[%clk 0:01:23.7]} 22... Qe6 {[%clk 0:00:29.3]} 23. Rc1 {[%clk 0:01:21.7]}
23... Qd6 {[%clk 0:00:24.1]} 24. Qc4 {[%clk 0:01:21.2]} 24... Ne7 {[%clk
0:00:10.9]} 25. Qxc7 {[%clk 0:01:21.1]} 25... Qxc7 {[%clk 0:00:10.3]} 26. Rxc7
{[%clk 0:01:22]} 26... Nf5 {[%clk 0:00:11.2]} 27. Rxa7 {[%clk 0:01:22]} 1-0

[Event "Early-Titled-Tuesday-Blitz-May-28-2024"]
[Site "Chess.com"]
[Date "2024.05.28"]
[Round "5"]
[White "Aswathchess"]
[Black "Eliwood44"]
[Result "1-0"]
[WhiteElo "2722"]
[BlackElo "2461"]
[TimeControl "180+1"]
[EndTime "8:54:54 PDT"]
[Termination "Aswathchess won by resignation"]

1. e4 {[%clk 0:02:56.6]} 1... e5 {[%clk 0:02:59.7]} 2. Nf3 {[%clk 0:02:55.2]}
2... Nc6 {[%clk 0:02:59.9]} 3. Bc4 {[%clk 0:02:55]} 3... Nf6 {[%clk 0:03:00]} 4.
d3 {[%clk 0:02:54.2]} 4... Bc5 {[%clk 0:03:00.1]} 5. O-O {[%clk 0:02:52.8]} 5...
d6 {[%clk 0:03:00.5]} 6. c3 {[%clk 0:02:51.3]} 6... a5 {[%clk 0:02:57.8]} 7. Re1
{[%clk 0:02:49.4]} 7... h6 {[%clk 0:02:56.8]} 8. Nbd2 {[%clk 0:02:47.1]} 8...
O-O {[%clk 0:02:56.2]} 9. h3 {[%clk 0:02:46.4]} 9... Re8 {[%clk 0:02:56.3]} 10.
Nf1 {[%clk 0:02:45.9]} 10... Ba7 {[%clk 0:02:56.5]} 11. Ng3 {[%clk 0:02:44.7]}
11... Be6 {[%clk 0:02:56.8]} 12. Bb5 {[%clk 0:02:44.6]} 12... Bd7 {[%clk
0:02:53.7]} 13. d4 {[%clk 0:02:41.5]} 13... exd4 {[%clk 0:02:48.5]} 14. cxd4
{[%clk 0:02:37.7]} 14... Ne7 {[%clk 0:02:34.6]} 15. Bd3 {[%clk 0:02:34.7]} 15...
c5 {[%clk 0:02:32.2]} 16. e5 {[%clk 0:02:30.2]} 16... dxe5 {[%clk 0:02:30.3]}
17. dxe5 {[%clk 0:02:29.9]} 17... Nfd5 {[%clk 0:02:26.7]} 18. Ne4 {[%clk
0:02:08.4]} 18... Nb4 {[%clk 0:02:17.7]} 19. Bb1 {[%clk 0:01:55.9]} 19... Nf5
{[%clk 0:02:13]} 20. a3 {[%clk 0:01:51.7]} 20... Nc6 {[%clk 0:02:09.6]} 21. Qd3
{[%clk 0:01:43.7]} 21... Nxe5 {[%clk 0:01:58.9]} 22. Nxe5 {[%clk 0:01:39.5]}
22... Rxe5 {[%clk 0:01:59.8]} 23. Bf4 {[%clk 0:01:39.7]} 23... Re8 {[%clk
0:01:52.9]} 24. Bc2 {[%clk 0:01:39.3]} 24... c4 {[%clk 0:01:49]} 25. Qxc4 {[%clk
0:01:32.9]} 25... Rc8 {[%clk 0:01:45.8]} 26. Qd3 {[%clk 0:01:30.7]} 26... Qh4
{[%clk 0:01:30.6]} 27. Qxd7 {[%clk 0:01:24]} 27... Qxf4 {[%clk 0:01:23.5]} 28.
Nf6+ {[%clk 0:01:21.1]} 28... gxf6 {[%clk 0:01:21.2]} 29. Rxe8+ {[%clk
0:01:21.5]} 29... Rxe8 {[%clk 0:01:21.8]} 30. Qxe8+ {[%clk 0:01:22.2]} 30... Kg7
{[%clk 0:01:22.5]} 31. Qe2 {[%clk 0:01:19.4]} 31... Nd4 {[%clk 0:01:17.6]} 32.
Qd3 {[%clk 0:01:19]} 32... Nxc2 {[%clk 0:01:09.2]} 33. Qxc2 {[%clk 0:01:18.7]}
33... Bd4 {[%clk 0:01:06]} 34. Re1 {[%clk 0:01:18.4]} 34... Qg5 {[%clk 0:00:55]}
35. Re4 {[%clk 0:01:15.2]} 35... Qd5 {[%clk 0:00:50.2]} 36. Rg4+ {[%clk
0:01:06.8]} 36... Kf8 {[%clk 0:00:50.1]} 37. Qd2 {[%clk 0:01:05.6]} 1-0

[Event "Early-Titled-Tuesday-Blitz-May-28-2024"]
[Site "Chess.com"]
[Date "2024.05.28"]
[Round "5"]
[White "AradNazari"]
[Black "balack95"]
[Result "1-0"]
[WhiteElo "2786"]
[BlackElo "2499"]
[TimeControl "180+1"]
[EndTime "8:54:55 PDT"]
[Termination "AradNazari won by checkmate"]

1. e4 {[%clk 0:03:00.9]} 1... c5 {[%clk 0:02:59.4]} 2. Nf3 {[%clk 0:03:00.7]}
2... e6 {[%clk 0:02:59.6]} 3. d4 {[%clk 0:03:00.6]} 3... cxd4 {[%clk 0:02:59.9]}
4. Nxd4 {[%clk 0:03:01.4]} 4... Nc6 {[%clk 0:03:00.6]} 5. Nc3 {[%clk 0:03:01.6]}
5... Qc7 {[%clk 0:03:01.2]} 6. Be3 {[%clk 0:03:01.8]} 6... a6 {[%clk 0:03:01.7]}
7. Qf3 {[%clk 0:03:02.1]} 7... Nf6 {[%clk 0:02:58]} 8. O-O-O {[%clk 0:03:01.6]}
8... Ne5 {[%clk 0:02:53.7]} 9. Qg3 {[%clk 0:03:01.8]} 9... h5 {[%clk 0:02:53.5]}
10. f4 {[%clk 0:03:00.7]} 10... h4 {[%clk 0:02:52.1]} 11. Qh3 {[%clk 0:02:51.5]}
11... Neg4 {[%clk 0:02:51.2]} 12. e5 {[%clk 0:02:44.4]} 12... Nxe3 {[%clk
0:02:50.3]} 13. Qxe3 {[%clk 0:02:45]} 13... Ng4 {[%clk 0:02:47.6]} 14. Qf3
{[%clk 0:02:44.7]} 14... Nh6 {[%clk 0:02:41.8]} 15. g4 {[%clk 0:02:43.6]} 15...
hxg3 {[%clk 0:02:39.8]} 16. hxg3 {[%clk 0:02:43.2]} 16... Bb4 {[%clk 0:02:29.4]}
17. Ne4 {[%clk 0:02:36.5]} 17... d5 {[%clk 0:01:37.1]} 18. exd6 {[%clk
0:02:31.4]} 18... Bxd6 {[%clk 0:01:37.6]} 19. Nxd6+ {[%clk 0:02:18.1]} 19...
Qxd6 {[%clk 0:01:36.4]} 20. Nf5 {[%clk 0:02:13.6]} 20... Qxd1+ {[%clk
0:01:26.3]} 21. Qxd1 {[%clk 0:02:06.3]} 21... exf5 {[%clk 0:01:27.2]} 22. Bc4
{[%clk 0:02:06.4]} 22... O-O {[%clk 0:01:24.6]} 23. Qd6 {[%clk 0:02:02.1]} 23...
b5 {[%clk 0:01:16.4]} 24. Bd5 {[%clk 0:02:01.6]} 24... Ra7 {[%clk 0:01:13.1]}
25. Qg6 {[%clk 0:02:01.7]} 25... Rd8 {[%clk 0:00:57.1]} 26. Rxh6 {[%clk
0:01:52.9]} 26... Rxd5 {[%clk 0:00:54.3]} 27. Qh7+ {[%clk 0:01:53.2]} 27... Kf8
{[%clk 0:00:54.9]} 28. Qh8+ {[%clk 0:01:53.8]} 28... Ke7 {[%clk 0:00:55.5]} 29.
Qxg7 {[%clk 0:01:54.4]} 29... Be6 {[%clk 0:00:53.4]} 30. Rh8 {[%clk 0:01:38.1]}
30... Kd7 {[%clk 0:00:32.7]} 31. Qf8 {[%clk 0:01:35.4]} 31... Kc6 {[%clk
0:00:22.3]} 32. Qb8 {[%clk 0:01:33.4]} 32... Rc7 {[%clk 0:00:19.6]} 33. b4
{[%clk 0:01:30.1]} 33... Rd4 {[%clk 0:00:17.3]} 34. a3 {[%clk 0:01:30.2]} 34...
Rcd7 {[%clk 0:00:15.4]} 35. Rc8+ {[%clk 0:01:28.8]} 35... Kd5 {[%clk 0:00:16]}
36. Qe5# {[%clk 0:01:28.9]} 1-0